[Event "*** Titled Tuesday Blitz"]
[Site "Chess.com"]
[Date "2020.05.05"]
[Round "9"]
[White "Witaliss"]
[Black "BikingBrian"]
[Result "1-0"]
[WhiteElo "2451"]
[BlackElo "2275"]
[TimeControl "180+1"]
[EndTime "11:48:31 PDT"]
[Termination "Witaliss won by checkmate"]

1. d4 {[%clk 0:03:00.9]} 1... Nf6 {[%clk 0:02:58.8]} 2. c4 {[%clk 0:03:00]} 2...
g6 {[%clk 0:02:59.2]} 3. Nc3 {[%clk 0:02:59]} 3... Bg7 {[%clk 0:02:59.6]} 4. e4
{[%clk 0:02:59]} 4... d6 {[%clk 0:03:00.1]} 5. Be2 {[%clk 0:02:59.1]} 5... O-O
{[%clk 0:03:00.4]} 6. Bg5 {[%clk 0:02:58.9]} 6... c5 {[%clk 0:03:00.7]} 7. d5
{[%clk 0:02:58.4]} 7... e6 {[%clk 0:03:01.2]} 8. Qd2 {[%clk 0:02:55.6]} 8...
exd5 {[%clk 0:03:00.6]} 9. cxd5 {[%clk 0:02:55.5]} 9... Re8 {[%clk 0:02:50.2]}
10. f3 {[%clk 0:02:54.9]} 10... a6 {[%clk 0:02:46.9]} 11. a4 {[%clk 0:02:53.9]}
11... Qc7 {[%clk 0:02:43.5]} 12. Bd1 {[%clk 0:02:35.8]} 12... Nbd7 {[%clk
0:02:30.7]} 13. Nge2 {[%clk 0:02:35.4]} 13... Ne5 {[%clk 0:02:27.7]} 14. O-O
{[%clk 0:02:30.2]} 14... Rb8 {[%clk 0:02:24.5]} 15. a5 {[%clk 0:02:26.4]} 15...
b5 {[%clk 0:02:17.6]} 16. axb6 {[%clk 0:02:25.2]} 16... Qxb6 {[%clk 0:02:16.2]}
17. Na4 {[%clk 0:02:22.8]} 17... Qb4 {[%clk 0:02:07.1]} 18. Qxb4 {[%clk
0:02:18.9]} 18... Rxb4 {[%clk 0:02:08]} 19. Bd2 {[%clk 0:02:18.2]} 19... Rb8
{[%clk 0:02:04.8]} 20. Bc3 {[%clk 0:02:15.6]} 20... Nc4 {[%clk 0:02:00.2]} 21.
Bc2 {[%clk 0:02:09.5]} 21... Ne3 {[%clk 0:01:52.2]} 22. Rfc1 {[%clk 0:02:04]}
22... Nxc2 {[%clk 0:01:34.6]} 23. Rxc2 {[%clk 0:02:03.1]} 23... Nd7 {[%clk
0:01:34.8]} 24. Bxg7 {[%clk 0:01:59.8]} 24... Kxg7 {[%clk 0:01:35.7]} 25. Nac3
{[%clk 0:01:54]} 25... Ne5 {[%clk 0:01:32.4]} 26. Nd1 {[%clk 0:01:44.5]} 26...
Rb3 {[%clk 0:01:19.1]} 27. Rc3 {[%clk 0:01:38.2]} 27... Rxc3 {[%clk 0:01:15.1]}
28. Nexc3 {[%clk 0:01:37.6]} 28... Nc4 {[%clk 0:00:56.3]} 29. Ra4 {[%clk
0:01:25.9]} 29... Nb6 {[%clk 0:00:53.7]} 30. Ra3 {[%clk 0:01:24.1]} 30... Bb7
{[%clk 0:00:53.5]} 31. Rb3 {[%clk 0:01:23.1]} 31... Bxd5 {[%clk 0:00:42.9]} 32.
Rxb6 {[%clk 0:01:21.9]} 32... Bc4 {[%clk 0:00:42.8]} 33. Rxd6 {[%clk 0:01:21.1]}
33... Rb8 {[%clk 0:00:42.2]} 34. Rc6 {[%clk 0:01:19.7]} 34... Bb3 {[%clk
0:00:37.6]} 35. Rxc5 {[%clk 0:01:19]} 35... Rd8 {[%clk 0:00:37.1]} 36. Ne3
{[%clk 0:01:03.1]} 36... Rd2 {[%clk 0:00:35.6]} 37. Rc6 {[%clk 0:01:00.5]} 37...
Rxb2 {[%clk 0:00:32.1]} 38. Rxa6 {[%clk 0:00:59.9]} 38... Be6 {[%clk 0:00:28.2]}
39. Ncd5 {[%clk 0:00:57.3]} 39... Re2 {[%clk 0:00:20.3]} 40. h4 {[%clk
0:00:54.4]} 40... Bxd5 {[%clk 0:00:19.5]} 41. Nxd5 {[%clk 0:00:53.8]} 41... h5
{[%clk 0:00:19.2]} 42. Ra7 {[%clk 0:00:50.8]} 42... Rd2 {[%clk 0:00:17.6]} 43.
Kh2 {[%clk 0:00:49.8]} 43... Rc2 {[%clk 0:00:15.4]} 44. Kg3 {[%clk 0:00:49.5]}
44... Rb2 {[%clk 0:00:15.2]} 45. e5 {[%clk 0:00:48.8]} 45... Re2 {[%clk
0:00:14.6]} 46. f4 {[%clk 0:00:45.7]} 46... Re4 {[%clk 0:00:14.3]} 47. Kf3
{[%clk 0:00:43.7]} 47... Re1 {[%clk 0:00:13.9]} 48. Nf6 {[%clk 0:00:43.1]} 48...
Rb1 {[%clk 0:00:12.1]} 49. Ra8 {[%clk 0:00:41.9]} 49... Rb3+ {[%clk 0:00:11.8]}
50. Kf2 {[%clk 0:00:38.9]} 50... Rb2+ {[%clk 0:00:12.2]} 51. Kg3 {[%clk
0:00:38.9]} 51... Rb3+ {[%clk 0:00:12.5]} 52. Kh2 {[%clk 0:00:38.7]} 52... Rb4
{[%clk 0:00:13]} 53. g3 {[%clk 0:00:37.6]} 53... Rb2+ {[%clk 0:00:12.9]} 54. Kh3
{[%clk 0:00:37.1]} 54... Rb1 {[%clk 0:00:13.3]} 55. Rg8+ {[%clk 0:00:33.1]}
55... Kh6 {[%clk 0:00:13.5]} 56. Rh8+ {[%clk 0:00:30.9]} 56... Kg7 {[%clk
0:00:13]} 57. Rh7+ {[%clk 0:00:30.9]} 57... Kf8 {[%clk 0:00:13.4]} 58. Ne4
{[%clk 0:00:29.8]} 58... Rh1+ {[%clk 0:00:12.6]} 59. Kg2 {[%clk 0:00:29.1]}
59... Re1 {[%clk 0:00:13.4]} 60. Ng5 {[%clk 0:00:29]} 60... f6 {[%clk 0:00:12]}
61. exf6 {[%clk 0:00:27.4]} 61... Re2+ {[%clk 0:00:11.3]} 62. Kf3 {[%clk
0:00:26.7]} 62... Ra2 {[%clk 0:00:11.4]} 63. Rh8# {[%clk 0:00:26.4]} 1-0

[Event "*** Titled Tuesday Blitz"]
[Site "Chess.com"]
[Date "2020.05.05"]
[Round "9"]
[White "Stronger1799"]
[Black "kakakz"]
[Result "0-1"]
[WhiteElo "2234"]
[BlackElo "2421"]
[TimeControl "180+1"]
[EndTime "11:48:33 PDT"]
[Termination "kakakz won on time"]

1. e4 {[%clk 0:03:00.9]} 1... c5 {[%clk 0:02:58.8]} 2. Nf3 {[%clk 0:03:00.5]}
2... d6 {[%clk 0:02:58.4]} 3. d4 {[%clk 0:03:00.8]} 3... cxd4 {[%clk 0:02:59.3]}
4. Nxd4 {[%clk 0:03:00.7]} 4... Nf6 {[%clk 0:02:59.7]} 5. Nc3 {[%clk 0:03:01.2]}
5... g6 {[%clk 0:03:00.3]} 6. Be3 {[%clk 0:02:59.7]} 6... Bg7 {[%clk 0:03:00.7]}
7. f3 {[%clk 0:03:00.2]} 7... Nc6 {[%clk 0:03:00.6]} 8. Qd2 {[%clk 0:02:59.9]}
8... O-O {[%clk 0:03:01.2]} 9. Nb3 {[%clk 0:02:55.6]} 9... a5 {[%clk 0:02:56.3]}
10. a4 {[%clk 0:02:54.4]} 10... Nb4 {[%clk 0:02:55]} 11. O-O-O {[%clk
0:02:53.9]} 11... Bd7 {[%clk 0:02:47.4]} 12. Kb1 {[%clk 0:02:53.3]} 12... Rc8
{[%clk 0:02:18.4]} 13. g4 {[%clk 0:02:49.5]} 13... Be6 {[%clk 0:01:47]} 14. h4
{[%clk 0:02:45.6]} 14... h5 {[%clk 0:01:44.7]} 15. Bh6 {[%clk 0:02:31.3]} 15...
Kh7 {[%clk 0:01:16.8]} 16. Bxg7 {[%clk 0:02:31]} 16... Kxg7 {[%clk 0:01:17.7]}
17. g5 {[%clk 0:02:31.6]} 17... Nd7 {[%clk 0:01:16.6]} 18. Be2 {[%clk 0:01:34]}
18... Nb6 {[%clk 0:00:29.3]} 19. f4 {[%clk 0:01:31]} 19... Bc4 {[%clk
0:00:27.8]} 20. Bf3 {[%clk 0:01:26.5]} 20... Be6 {[%clk 0:00:19.9]} 21. f5
{[%clk 0:01:17.5]} 21... gxf5 {[%clk 0:00:13.1]} 22. Bxh5 {[%clk 0:01:17.3]}
22... Nc4 {[%clk 0:00:12.4]} 23. Qd4+ {[%clk 0:01:13.4]} 23... Kg8 {[%clk
0:00:12.6]} 24. g6 {[%clk 0:01:02.5]} 24... f6 {[%clk 0:00:12.3]} 25. g7 {[%clk
0:00:52.4]} 25... Rf7 {[%clk 0:00:11.9]} 26. exf5 {[%clk 0:00:44.4]} 26... Bxf5
{[%clk 0:00:10.3]} 27. Bxf7+ {[%clk 0:00:44.2]} 27... Kxf7 {[%clk 0:00:10.3]}
28. Rh2 {[%clk 0:00:36.1]} 28... Qg8 {[%clk 0:00:09.4]} 29. Rg1 {[%clk
0:00:34.7]} 29... Qh7 {[%clk 0:00:09.4]} 30. g8=Q+ {[%clk 0:00:29.5]} 30... Rxg8
{[%clk 0:00:08.9]} 31. Rxg8 {[%clk 0:00:21.8]} 31... Bxc2+ {[%clk 0:00:07.1]}
32. Kc1 {[%clk 0:00:19]} 32... Bxb3 {[%clk 0:00:04.9]} 33. Rhg2 {[%clk
0:00:12.6]} 33... Qh6+ {[%clk 0:00:04.6]} 34. R8g5 {[%clk 0:00:04]} 34... fxg5
{[%clk 0:00:04.1]} 35. Rxg5 {[%clk 0:00:03]} 35... Qf6 {[%clk 0:00:02.8]} 36.
Qd1 {[%clk 0:00:01.1]} 36... Qf4+ {[%clk 0:00:01.3]} 0-1

[Event "*** Titled Tuesday Blitz"]
[Site "Chess.com"]
[Date "2020.05.05"]
[Round "9"]
[White "aNaartjieZA"]
[Black "NormWeinstein"]
[Result "1-0"]
[WhiteElo "2592"]
[BlackElo "2455"]
[TimeControl "180+1"]
[EndTime "11:48:34 PDT"]
[Termination "aNaartjieZA won on time"]

1. e4 {[%clk 0:03:00.9]} 1... c5 {[%clk 0:02:59.9]} 2. Nf3 {[%clk 0:03:01]} 2...
d6 {[%clk 0:03:00.3]} 3. g3 {[%clk 0:03:01.2]} 3... Nf6 {[%clk 0:03:00.3]} 4. d3
{[%clk 0:03:01.1]} 4... g6 {[%clk 0:02:59.3]} 5. Bg2 {[%clk 0:03:01.2]} 5... Bg7
{[%clk 0:02:59.8]} 6. O-O {[%clk 0:03:01.8]} 6... O-O {[%clk 0:03:00.3]} 7. Re1
{[%clk 0:03:01.9]} 7... Nc6 {[%clk 0:03:00.1]} 8. c3 {[%clk 0:03:02.2]} 8... Rb8
{[%clk 0:03:00]} 9. a4 {[%clk 0:03:00.8]} 9... a6 {[%clk 0:02:59.5]} 10. h3
{[%clk 0:03:01.1]} 10... b5 {[%clk 0:02:58.1]} 11. axb5 {[%clk 0:03:02]} 11...
axb5 {[%clk 0:02:57.9]} 12. d4 {[%clk 0:03:02.6]} 12... e5 {[%clk 0:02:40.3]}
13. Nbd2 {[%clk 0:02:31.9]} 13... exd4 {[%clk 0:02:25.3]} 14. cxd4 {[%clk
0:02:31.3]} 14... cxd4 {[%clk 0:02:25.8]} 15. Nb3 {[%clk 0:02:30.8]} 15... Qb6
{[%clk 0:02:26.3]} 16. Nfxd4 {[%clk 0:02:27.5]} 16... Ne5 {[%clk 0:02:08.8]} 17.
Kh2 {[%clk 0:02:21]} 17... Bb7 {[%clk 0:01:59.3]} 18. f4 {[%clk 0:02:05]} 18...
Nc4 {[%clk 0:01:57.1]} 19. Qd3 {[%clk 0:01:47.7]} 19... Rfe8 {[%clk 0:01:49.8]}
20. Nc2 {[%clk 0:01:16.8]} 20... Nd7 {[%clk 0:01:42.6]} 21. Be3 {[%clk 0:00:52]}
21... Nxe3 {[%clk 0:01:38.7]} 22. Nxe3 {[%clk 0:00:51.7]} 22... Bxb2 {[%clk
0:01:29.1]} 23. Rab1 {[%clk 0:00:51.2]} 23... Bg7 {[%clk 0:01:29.6]} 24. Red1
{[%clk 0:00:32.7]} 24... Nc5 {[%clk 0:01:25.2]} 25. Nxc5 {[%clk 0:00:31.7]}
25... dxc5 {[%clk 0:01:05]} 26. Qxb5 {[%clk 0:00:28.6]} 26... Qc7 {[%clk
0:00:48.2]} 27. Qc4 {[%clk 0:00:19.4]} 27... Red8 {[%clk 0:00:33.1]} 28. Nd5
{[%clk 0:00:06.9]} 28... Bxd5 {[%clk 0:00:30.1]} 29. exd5 {[%clk 0:00:06.5]}
29... Rxb1 {[%clk 0:00:23.9]} 30. Rxb1 {[%clk 0:00:06]} 30... Bd4 {[%clk
0:00:24.4]} 31. Rd1 {[%clk 0:00:06.2]} 31... Qd6 {[%clk 0:00:22.9]} 32. Qd3
{[%clk 0:00:05.6]} 32... Rb8 {[%clk 0:00:22.2]} 33. Re1 {[%clk 0:00:05.8]} 33...
Kg7 {[%clk 0:00:21]} 34. Re2 {[%clk 0:00:06.3]} 34... Qb6 {[%clk 0:00:14.3]} 35.
h4 {[%clk 0:00:06.5]} 35... h5 {[%clk 0:00:13.5]} 36. f5 {[%clk 0:00:05.3]}
36... Qf6 {[%clk 0:00:12.5]} 37. fxg6 {[%clk 0:00:05.4]} 37... fxg6 {[%clk
0:00:12.3]} 38. Qe4 {[%clk 0:00:05.8]} 38... Rf8 {[%clk 0:00:11.2]} 39. Qe7+
{[%clk 0:00:05.9]} 39... Rf7 {[%clk 0:00:10.8]} 40. Qxf6+ {[%clk 0:00:05.5]}
40... Bxf6 {[%clk 0:00:10.8]} 41. Re6 {[%clk 0:00:06]} 41... Rd7 {[%clk
0:00:08.9]} 42. Rc6 {[%clk 0:00:06.9]} 42... Bd4 {[%clk 0:00:08]} 43. Bf3 {[%clk
0:00:07.5]} 43... Kf7 {[%clk 0:00:07]} 44. Kg2 {[%clk 0:00:08]} 44... Ra7 {[%clk
0:00:06.9]} 45. Be4 {[%clk 0:00:08.3]} 45... Ra2+ {[%clk 0:00:06.1]} 46. Kh3
{[%clk 0:00:08.6]} 46... Bf6 {[%clk 0:00:03.3]} 47. Rxc5 {[%clk 0:00:07.6]} 1-0

[Event "*** Titled Tuesday Blitz"]
[Site "Chess.com"]
[Date "2020.05.05"]
[Round "9"]
[White "SHIVACalypso"]
[Black "leopato"]
[Result "1-0"]
[WhiteElo "2296"]
[BlackElo "2088"]
[TimeControl "180+1"]
[EndTime "11:48:34 PDT"]
[Termination "SHIVACalypso won by resignation"]

1. Nf3 {[%clk 0:03:00.9]} 1... Nf6 {[%clk 0:03:00.1]} 2. c4 {[%clk 0:02:59.6]}
2... g6 {[%clk 0:03:01]} 3. g3 {[%clk 0:02:59.6]} 3... Bg7 {[%clk 0:03:01.9]} 4.
Bg2 {[%clk 0:02:59.4]} 4... O-O {[%clk 0:03:02.8]} 5. O-O {[%clk 0:02:59.8]}
5... d6 {[%clk 0:03:03.7]} 6. Nc3 {[%clk 0:02:59.7]} 6... Nc6 {[%clk 0:03:04]}
7. d3 {[%clk 0:02:59.1]} 7... a6 {[%clk 0:03:03.8]} 8. Rb1 {[%clk 0:02:58.6]}
8... h6 {[%clk 0:03:02.5]} 9. b4 {[%clk 0:02:57.3]} 9... e5 {[%clk 0:03:01.5]}
10. a4 {[%clk 0:02:55.4]} 10... Bf5 {[%clk 0:02:58.6]} 11. Nd2 {[%clk
0:02:51.8]} 11... Qd7 {[%clk 0:02:52]} 12. b5 {[%clk 0:02:50.2]} 12... axb5
{[%clk 0:02:51.3]} 13. axb5 {[%clk 0:02:51.1]} 13... Nd8 {[%clk 0:02:49.1]} 14.
Bb2 {[%clk 0:02:49.8]} 14... Bh3 {[%clk 0:02:47.4]} 15. Ra1 {[%clk 0:02:46.2]}
15... Rb8 {[%clk 0:02:38.7]} 16. Qa4 {[%clk 0:02:35.4]} 16... Nh5 {[%clk
0:02:29.9]} 17. Qa7 {[%clk 0:02:26.1]} 17... Rc8 {[%clk 0:02:28.5]} 18. Nd5
{[%clk 0:02:11.1]} 18... Re8 {[%clk 0:02:21.9]} 19. b6 {[%clk 0:01:25.9]} 19...
c6 {[%clk 0:02:16.2]} 20. Nc7 {[%clk 0:01:25.5]} 20... Rf8 {[%clk 0:02:11.6]}
21. Ba3 {[%clk 0:01:22.2]} 21... Nf4 {[%clk 0:02:03.2]} 22. Bxh3 {[%clk
0:01:11.3]} 22... Qxh3 {[%clk 0:01:56]} 23. gxf4 {[%clk 0:01:03.7]} 23... exf4
{[%clk 0:01:50.7]} 24. Nf3 {[%clk 0:00:43.2]} 24... g5 {[%clk 0:01:20.3]} 25.
Kh1 {[%clk 0:00:29]} 25... g4 {[%clk 0:01:18]} 26. Ng1 {[%clk 0:00:27.8]} 26...
Qh4 {[%clk 0:01:16.4]} 27. Bxd6 {[%clk 0:00:24.4]} 27... Bd4 {[%clk 0:00:56]}
28. Bxf4 {[%clk 0:00:19.4]} 28... c5 {[%clk 0:00:46.2]} 29. e3 {[%clk
0:00:16.8]} 29... Bxa1 {[%clk 0:00:43.4]} 30. Qxa1 {[%clk 0:00:17.7]} 30... Nc6
{[%clk 0:00:40.9]} 31. Bg3 {[%clk 0:00:16.5]} 31... Qg5 {[%clk 0:00:38.1]} 32.
Ne2 {[%clk 0:00:13.6]} 32... Rfd8 {[%clk 0:00:34.9]} 33. Nf4 {[%clk 0:00:13.2]}
33... Ne5 {[%clk 0:00:31.2]} 34. Ncd5 {[%clk 0:00:12]} 34... f6 {[%clk
0:00:27.7]} 35. Ne6 {[%clk 0:00:09.4]} 35... Qg6 {[%clk 0:00:20.2]} 36. Ne7+
{[%clk 0:00:08.2]} 36... Kf7 {[%clk 0:00:19.7]} 37. Nxg6 {[%clk 0:00:08.8]}
37... Nxg6 {[%clk 0:00:16.6]} 38. Nxd8+ {[%clk 0:00:08.3]} 38... Rxd8 {[%clk
0:00:17.5]} 39. d4 {[%clk 0:00:08]} 39... cxd4 {[%clk 0:00:16.6]} 40. exd4
{[%clk 0:00:08.9]} 40... f5 {[%clk 0:00:15.7]} 41. Re1 {[%clk 0:00:07.5]} 41...
f4 {[%clk 0:00:15]} 42. Bxf4 {[%clk 0:00:07.5]} 42... Nxf4 {[%clk 0:00:14.7]}
43. Qb1 {[%clk 0:00:07.2]} 43... Ng6 {[%clk 0:00:12.7]} 44. Qf5+ {[%clk
0:00:07.1]} 44... Kg7 {[%clk 0:00:13.1]} 45. Re6 {[%clk 0:00:07.3]} 45... Nf8
{[%clk 0:00:11]} 46. Re7+ {[%clk 0:00:06.9]} 46... Kh8 {[%clk 0:00:09.9]} 47.
Qf6+ {[%clk 0:00:06.6]} 1-0

[Event "*** Titled Tuesday Blitz"]
[Site "Chess.com"]
[Date "2020.05.05"]
[Round "9"]
[White "DanielTitichoca"]
[Black "TERMINATOR_PC"]
[Result "0-1"]
[WhiteElo "2304"]
[BlackElo "2467"]
[TimeControl "180+1"]
[EndTime "11:48:35 PDT"]
[Termination "TERMINATOR_PC won by checkmate"]

1. e4 {[%clk 0:03:00.9]} 1... Nf6 {[%clk 0:03:00.9]} 2. d3 {[%clk 0:03:00.1]}
2... d5 {[%clk 0:03:00.5]} 3. Nd2 {[%clk 0:02:58.7]} 3... e5 {[%clk 0:03:00.8]}
4. Ngf3 {[%clk 0:02:58.1]} 4... Nc6 {[%clk 0:03:01.3]} 5. c3 {[%clk 0:02:58.3]}
5... Bc5 {[%clk 0:03:00.8]} 6. Be2 {[%clk 0:02:58.3]} 6... a5 {[%clk 0:03:00.9]}
7. h3 {[%clk 0:02:58.2]} 7... O-O {[%clk 0:03:00.8]} 8. Qc2 {[%clk 0:02:57.8]}
8... Re8 {[%clk 0:03:00]} 9. Nf1 {[%clk 0:02:56.3]} 9... b6 {[%clk 0:02:54.8]}
10. g4 {[%clk 0:02:55.1]} 10... Ba6 {[%clk 0:02:48.7]} 11. Ng3 {[%clk
0:02:55.3]} 11... dxe4 {[%clk 0:02:13.7]} 12. dxe4 {[%clk 0:02:56.2]} 12... Bxe2
{[%clk 0:02:14.2]} 13. Qxe2 {[%clk 0:02:54.4]} 13... Qc8 {[%clk 0:02:12.7]} 14.
Bg5 {[%clk 0:02:39.8]} 14... Nd7 {[%clk 0:02:10.5]} 15. O-O-O {[%clk 0:02:34.5]}
15... Nf8 {[%clk 0:02:07.2]} 16. h4 {[%clk 0:02:31.3]} 16... Ne6 {[%clk
0:02:06.5]} 17. Be3 {[%clk 0:02:29]} 17... Nf4 {[%clk 0:02:05.8]} 18. Qf1 {[%clk
0:02:23.2]} 18... Qxg4 {[%clk 0:01:59.2]} 19. Nh2 {[%clk 0:02:12.7]} 19... Bxe3+
{[%clk 0:01:55.9]} 20. Kb1 {[%clk 0:02:10.7]} 20... Qh3 {[%clk 0:01:33.6]} 21.
fxe3 {[%clk 0:02:05.4]} 21... Qxg3 {[%clk 0:01:25.7]} 22. exf4 {[%clk 0:02:04]}
22... Qxf4 {[%clk 0:01:26.6]} 23. Nf3 {[%clk 0:01:56.8]} 23... Rad8 {[%clk
0:01:24.9]} 24. Re1 {[%clk 0:01:54.1]} 24... Rd6 {[%clk 0:01:16.5]} 25. Rg1
{[%clk 0:01:51]} 25... Rf6 {[%clk 0:01:12.3]} 26. Qc4 {[%clk 0:01:43.9]} 26...
Qxf3 {[%clk 0:01:01.8]} 27. Rgf1 {[%clk 0:01:42.7]} 27... Qg3 {[%clk 0:00:56]}
28. Rg1 {[%clk 0:01:35.8]} 28... Qxh4 {[%clk 0:00:51.4]} 29. Rd1 {[%clk
0:01:34.9]} 29... b5 {[%clk 0:00:38]} 30. Qxb5 {[%clk 0:01:30.2]} 30... Qxe4+
{[%clk 0:00:37.7]} 31. Ka1 {[%clk 0:01:28.5]} 31... h6 {[%clk 0:00:35]} 32. Rge1
{[%clk 0:01:24]} 32... Qg4 {[%clk 0:00:29.5]} 33. Rg1 {[%clk 0:01:20.7]} 33...
Qf3 {[%clk 0:00:24.6]} 34. Rgf1 {[%clk 0:01:14.1]} 34... Qh5 {[%clk 0:00:22.3]}
35. Rh1 {[%clk 0:01:08.5]} 35... Qf5 {[%clk 0:00:20.4]} 36. Rhf1 {[%clk
0:01:03.3]} 36... Qe6 {[%clk 0:00:19.8]} 37. Rg1 {[%clk 0:01:02.7]} 37... Rb8
{[%clk 0:00:18.5]} 38. Qc5 {[%clk 0:01:02.2]} 38... Qe7 {[%clk 0:00:17.2]} 39.
Qe3 {[%clk 0:00:59]} 39... a4 {[%clk 0:00:15]} 40. Rg4 {[%clk 0:00:57.9]} 40...
a3 {[%clk 0:00:14.9]} 41. b3 {[%clk 0:00:57.6]} 41... Nd8 {[%clk 0:00:14.5]} 42.
Rdg1 {[%clk 0:00:57.5]} 42... Ne6 {[%clk 0:00:13.9]} 43. Qxe5 {[%clk 0:00:57.9]}
43... g6 {[%clk 0:00:12.2]} 44. Rh4 {[%clk 0:00:54.7]} 44... Kg7 {[%clk
0:00:06.5]} 45. Rf1 {[%clk 0:00:52.3]} 45... Rb6 {[%clk 0:00:04]} 46. Rc4 {[%clk
0:00:49.4]} 46... Rd6 {[%clk 0:00:03.3]} 47. Rxc7 {[%clk 0:00:45.5]} 47... Qxc7
{[%clk 0:00:02.9]} 48. Qxf6+ {[%clk 0:00:45.8]} 48... Kg8 {[%clk 0:00:03.8]} 49.
Rg1 {[%clk 0:00:38.5]} 49... Rd7 {[%clk 0:00:03.5]} 50. Re1 {[%clk 0:00:35.1]}
50... Qd6 {[%clk 0:00:03.6]} 51. Qf1 {[%clk 0:00:23.6]} 51... Qd2 {[%clk
0:00:02.9]} 52. Rc1 {[%clk 0:00:23.5]} 52... Qb2# {[%clk 0:00:02.9]} 0-1

[Event "*** Titled Tuesday Blitz"]
[Site "Chess.com"]
[Date "2020.05.05"]
[Round "9"]
[White "erlesfar"]
[Black "gmelviro"]
[Result "1-0"]
[WhiteElo "2434"]
[BlackElo "2264"]
[TimeControl "180+1"]
[EndTime "11:48:35 PDT"]
[Termination "erlesfar won on time"]

1. e4 {[%clk 0:03:00.9]} 1... e5 {[%clk 0:02:59.7]} 2. Bc4 {[%clk 0:03:00.2]}
2... Nf6 {[%clk 0:02:58.8]} 3. Nc3 {[%clk 0:03:00]} 3... Nc6 {[%clk 0:02:58.8]}
4. d3 {[%clk 0:03:00]} 4... Bc5 {[%clk 0:02:57.4]} 5. f4 {[%clk 0:02:59]} 5...
d6 {[%clk 0:02:57.7]} 6. Nf3 {[%clk 0:02:58.9]} 6... Bg4 {[%clk 0:02:57]} 7. Na4
{[%clk 0:02:57.9]} 7... Nd4 {[%clk 0:02:52.3]} 8. Nxc5 {[%clk 0:02:55.6]} 8...
dxc5 {[%clk 0:02:49.7]} 9. O-O {[%clk 0:02:44.9]} 9... exf4 {[%clk 0:02:47.8]}
10. Bxf4 {[%clk 0:02:42.3]} 10... Nxf3+ {[%clk 0:02:36.5]} 11. gxf3 {[%clk
0:02:40.6]} 11... Bh3 {[%clk 0:02:35.9]} 12. Rf2 {[%clk 0:02:39.4]} 12... Nh5
{[%clk 0:02:33.1]} 13. Bg3 {[%clk 0:02:34]} 13... O-O {[%clk 0:02:31.2]} 14. c3
{[%clk 0:02:27.2]} 14... Qd7 {[%clk 0:02:28.3]} 15. f4 {[%clk 0:02:26.3]} 15...
Bg4 {[%clk 0:02:24.5]} 16. Qf1 {[%clk 0:02:23.8]} 16... Be6 {[%clk 0:02:14]} 17.
Bxe6 {[%clk 0:02:19.4]} 17... fxe6 {[%clk 0:02:14]} 18. Rd1 {[%clk 0:02:16.1]}
18... Nxg3 {[%clk 0:02:13.2]} 19. hxg3 {[%clk 0:02:14.7]} 19... Rad8 {[%clk
0:02:13.6]} 20. d4 {[%clk 0:02:12.9]} 20... Qa4 {[%clk 0:02:07.3]} 21. b3 {[%clk
0:02:10.8]} 21... Qc6 {[%clk 0:02:03.1]} 22. Qe2 {[%clk 0:02:02.1]} 22... Rd7
{[%clk 0:01:48.7]} 23. Rf3 {[%clk 0:01:59.9]} 23... cxd4 {[%clk 0:01:45.3]} 24.
cxd4 {[%clk 0:01:58.8]} 24... Rfd8 {[%clk 0:01:44.5]} 25. Rfd3 {[%clk
0:01:58.7]} 25... Qb6 {[%clk 0:01:37.4]} 26. Qf2 {[%clk 0:01:56.4]} 26... Qb4
{[%clk 0:01:28.8]} 27. f5 {[%clk 0:01:50.8]} 27... exf5 {[%clk 0:01:25.8]} 28.
Qxf5 {[%clk 0:01:41.9]} 28... Rf7 {[%clk 0:01:19.8]} 29. Qe6 {[%clk 0:01:39.8]}
29... Rd6 {[%clk 0:01:07.9]} 30. Qc8+ {[%clk 0:01:34]} 30... Rf8 {[%clk
0:01:08.1]} 31. Qxc7 {[%clk 0:01:33.8]} 31... Rg6 {[%clk 0:00:58.8]} 32. Qc4+
{[%clk 0:01:31]} 32... Qxc4 {[%clk 0:00:58.2]} 33. bxc4 {[%clk 0:01:30.1]} 33...
h5 {[%clk 0:00:53.7]} 34. e5 {[%clk 0:01:25.1]} 34... h4 {[%clk 0:00:52.9]} 35.
Kg2 {[%clk 0:01:23.7]} 35... Rf4 {[%clk 0:00:50.3]} 36. d5 {[%clk 0:01:17.4]}
36... Rxc4 {[%clk 0:00:48.8]} 37. d6 {[%clk 0:01:10.5]} 37... Rc2+ {[%clk
0:00:48.8]} 38. Kg1 {[%clk 0:01:05.6]} 38... Rc8 {[%clk 0:00:17.8]} 39. d7
{[%clk 0:00:56.1]} 39... Rd8 {[%clk 0:00:17.9]} 40. Kh2 {[%clk 0:00:48.3]} 40...
hxg3+ {[%clk 0:00:16.9]} 41. Rxg3 {[%clk 0:00:47.9]} 41... Rxg3 {[%clk 0:00:17]}
42. Kxg3 {[%clk 0:00:47]} 42... Kf7 {[%clk 0:00:17.9]} 43. Kf4 {[%clk
0:00:39.4]} 43... Ke6 {[%clk 0:00:18.2]} 44. Rd6+ {[%clk 0:00:34.3]} 44... Ke7
{[%clk 0:00:18.4]} 45. Rg6 {[%clk 0:00:34]} 45... Kf7 {[%clk 0:00:18.6]} 46. Kf5
{[%clk 0:00:31.5]} 46... Rf8 {[%clk 0:00:16]} 47. e6+ {[%clk 0:00:27.3]} 47...
Ke7+ {[%clk 0:00:16.4]} 48. Ke5 {[%clk 0:00:27.2]} 48... Rg8 {[%clk 0:00:16.5]}
49. Rg1 {[%clk 0:00:24.2]} 49... g5 {[%clk 0:00:16.6]} 50. Rf1 {[%clk
0:00:23.5]} 50... g4 {[%clk 0:00:14.8]} 51. Rf7+ {[%clk 0:00:22.9]} 51... Kd8
{[%clk 0:00:15.4]} 52. Kd6 {[%clk 0:00:22.7]} 1-0